fUST/lending_fUST_20240826
["ID","MTS","AMOUNT","RATE_DAILY","PERIOD"]
[335980959,1724650254347,-363.00525169,0.00013121,2]
[335980960,1724650254359,-757.48942255,0.00013121,2]
[335980961,1724650254371,-150.112233,0.000132,2]
[335980962,1724650254382,-150.112233,0.000132,2]
[335980963,1724650254395,-150.112233,0.000132,2]
[335980964,1724650254406,-150.0,0.00013248,2]
[335980965,1724650254417,-522.0,0.00013248,2]
[335980966,1724650254430,-1419.866,0.00013248,2]
[335980967,1724650254441,-150.112233,0.000133,2]
[335980968,1724650254453,-150.112233,0.000133,2]
[335980969,1724650254464,-150.112233,0.000133,2]
[335980970,1724650254475,-420.0,0.00013331,2]
[335980971,1724650254488,-558.4,0.00013357,2]
[335980972,1724650254498,-865.51,0.00013357,2]
[335980973,1724650254509,-500.0,0.00013357,2]
[335980974,1724650254520,-500.0,0.00013367,2]
[335980975,1724650254532,-9543.39,0.00013367,2]
[335980976,1724650254544,-2405.69,0.00013367,2]
[335980977,1724650254555,-3996.92,0.00013367,2]
[335980978,1724650254566,-656.04,0.00013367,2]
[335980979,1724650254578,-2925.05,0.00013367,2]
[335980980,1724650254590,-500.0,0.00013367,2]
[335980981,1724650254604,-500.0,0.00013367,2]
[335980982,1724650254616,-1190.65,0.00013367,2]
[335980983,1724650254627,-500.0,0.00013367,2]
[335980984,1724650254638,-513.98,0.00013367,2]
[335980985,1724650254649,-611.7,0.00013367,2]
[335980986,1724650254661,-500.0,0.00013367,2]
[335980987,1724650254672,-500.0,0.00013367,2]
[335980988,1724650254683,-20450.68630876,0.00013367,2]
[335981004,1724650610288,301.6333299,0.00011999,2]
[335981007,1724650632000,521.48215482,0.00011999,2]
[335981008,1724650635153,160.714285,0.00011353,2]
[335981009,1724650635346,160.714285,0.00011399,2]
[335981010,1724650635710,160.714285,0.00011445,2]
[335981011,1724650635945,160.714285,0.0001149,2]
[335981012,1724650636152,160.714285,0.00011536,2]
[335981013,1724650636370,160.714285,0.00011581,2]
[335981014,1724650636569,160.714285,0.00011627,2]
[335981015,1724650636792,160.714285,0.00011672,2]
[335981016,1724650637013,160.714285,0.00011718,2]
[335981017,1724650637287,160.714285,0.00011763,2]
[335981018,1724650637505,160.714285,0.00011809,2]
[335981019,1724650637679,160.714285,0.00011854,2]
[335981020,1724650637907,160.714285,0.000119,2]
[335981021,1724650638134,160.714285,0.00011945,2]
[335981049,1724651056132,646.96149808,0.0001201,2]
[335981054,1724651136571,24890.0,0.00011255,2]
[335981060,1724651250866,7983.51079151,0.00011999,2]
[335981062,1724651295740,176.95271985,0.00011255,2]
[335981063,1724651323329,2129.48158209,0.00011999,2]
[335981069,1724651370699,3516.62005623,0.00011999,2]
[335981086,1724651438313,-300.0,0.00012247,2]
[335981088,1724651438324,-453.95325645,0.00012248,2]
[335981094,1724651438374,-289.44674355,0.00012248,2]
[335981096,1724651438387,-1867.14,0.00012248,2]
[335981098,1724651438398,-500.0,0.00012248,2]
[335981100,1724651438409,-569.25,0.00012248,2]
[335981103,1724651438420,-500.0,0.00012248,2]
[335981104,1724651438430,-298.46820211,0.00012248,2]
[335981106,1724651438440,-595.62,0.00012248,2]
[335981109,1724651438452,-500.0,0.00012248,2]
[335981111,1724651438463,-12547.84532469,0.00012249,2]
[335981113,1724651438477,-5265.03277721,0.00012249,2]
[335981117,1724651438505,-70026.5086981,0.00012249,2]
[335981119,1724651438516,-131759.0802,0.00012251,2]
[335981121,1724651438527,-3801.80370314,0.00012256,2]
[335981123,1724651438540,-500.0,0.00012257,2]
[335981125,1724651438552,-801.54,0.00012257,2]
[335981128,1724651438564,-9038.31,0.00012257,2]
[335981130,1724651438577,-500.0,0.00012257,2]
[335981132,1724651438588,-500.0,0.00012257,2]
[335981134,1724651438599,-2432.08,0.00012257,2]
[335981136,1724651438609,-500.0,0.00012257,2]
[335981138,1724651438620,-564.67,0.00012258,2]
[335981140,1724651438632,-500.0,0.00012258,2]
[335981142,1724651438647,-653.9,0.00012258,2]
[335981144,1724651438659,-500.0,0.00012258,2]
[335981147,1724651438672,-509.36192606,0.00012258,2]
[335981149,1724651438685,-500.0,0.00012258,2]
[335981151,1724651438699,-500.0,0.00012258,2]
[335981153,1724651438709,-500.0,0.00012258,2]
[335981155,1724651438723,-500.0,0.00012258,2]
[335981158,1724651438737,-500.0,0.00012258,2]
[335981160,1724651438750,-9737.48,0.00012258,2]
[335981162,1724651438761,-489.15234295,0.00012258,2]
[335981164,1724651438772,-500.0,0.00012258,2]
[335981166,1724651438783,-500.0,0.00012258,2]
[335981168,1724651438793,-2600.67,0.00012258,2]
[335981170,1724651438804,-500.0,0.00012258,2]
[335981172,1724651438815,-622.95,0.00012258,2]
[335981174,1724651438826,-384.54078142,0.00012258,2]
[335981176,1724651438840,-735.22,0.00012258,2]
[335981178,1724651438852,-4078.22,0.00012258,2]
[335981180,1724651438864,-500.0,0.00012258,2]
[335981183,1724651438877,-500.0,0.00012258,2]
[335981185,1724651438890,-500.0,0.00012258,2]
[335981187,1724651438900,-500.0,0.00012258,2]
[335981189,1724651438911,-2984.54,0.00012258,2]
[335981191,1724651438922,-500.0,0.00012258,2]
[335981193,1724651438933,-500.0,0.00012258,2]
[335981195,1724651438945,-1214.86,0.00012258,2]
[335981197,1724651438956,-500.0,0.00012258,2]
[335981199,1724651438966,-500.0,0.00012258,2]
[335981200,1724651438977,-500.0,0.00012258,2]
[335981201,1724651438987,-500.0,0.00012258,2]
[335981202,1724651438998,-500.0,0.00012258,2]
[335981203,1724651439008,-558.88,0.00012258,2]
[335981204,1724651439019,-500.0,0.00012258,2]
[335981205,1724651439030,-500.0,0.00012258,2]
[335981206,1724651439041,-500.0,0.00012258,2]
[335981207,1724651439051,-532.77848873,0.00012258,2]
[335981208,1724651439062,-626.45,0.00012258,2]
[335981209,1724651439073,-500.0,0.00012258,2]
[335981210,1724651439084,-500.0,0.00012258,2]
[335981211,1724651439096,-500.0,0.00012258,2]
[335981212,1724651439107,-23655.5,0.00012258,2]
[335981213,1724651439117,-500.0,0.00012258,2]
[335981214,1724651439127,-500.0,0.00012258,2]
[335981215,1724651439138,-500.0,0.00012258,2]
[335981216,1724651439149,-500.0,0.00012258,2]
[335981217,1724651439160,-664.44,0.00012258,2]
[335981218,1724651439172,-634.91,0.00012258,2]
[335981219,1724651439183,-500.0,0.00012258,2]
[335981220,1724651439193,-640.98,0.00012258,2]
[335981221,1724651439204,-1445.08,0.00012258,2]
[335981222,1724651439214,-565.55,0.00012258,2]
[335981223,1724651439226,-500.0,0.00012258,2]
[335981224,1724651439237,-593.61,0.00012258,2]
[335981225,1724651439248,-500.0,0.00012258,2]
[335981226,1724651439259,-500.0,0.00012258,2]
[335981227,1724651439270,-500.0,0.00012258,2]
[335981228,1724651439281,-500.0,0.00012258,2]
[335981229,1724651439292,-500.0,0.00012258,2]
[335981230,1724651439303,-500.0,0.00012258,2]
[335981231,1724651439313,-1260.5,0.00012258,2]
[335981232,1724651439324,-500.0,0.00012258,2]
[335981233,1724651439335,-500.0,0.00012258,2]
[335981234,1724651439346,-500.0,0.00012258,2]
[335981235,1724651439357,-963.93,0.00012258,2]
[335981236,1724651439367,-929.87,0.00012258,2]
[335981237,1724651439378,-283.92382111,0.00012258,2]
[335981238,1724651439388,-500.0,0.00012258,2]
[335981239,1724651439399,-500.0,0.00012258,2]
[335981240,1724651439409,-716.67,0.00012258,2]
[335981241,1724651439420,-500.0,0.00012258,2]
[335981242,1724651439430,-500.0,0.00012258,2]
[335981243,1724651439442,-500.0,0.00012258,2]
[335981244,1724651439453,-500.0,0.00012258,2]
[335981245,1724651439463,-500.0,0.00012258,2]
[335981246,1724651439474,-500.0,0.00012258,2]
[335981247,1724651439486,-500.0,0.00012258,2]
[335981248,1724651439496,-500.0,0.00012258,2]
[335981249,1724651439507,-500.0,0.00012258,2]
[335981250,1724651439518,-2128.99,0.00012258,2]
[335981251,1724651439528,-337.80461224,0.00012258,2]
[335981252,1724651439539,-576.84,0.00012258,2]
[335981253,1724651439550,-500.0,0.00012258,2]
[335981254,1724651439561,-500.0,0.00012258,2]
[335981255,1724651439571,-500.0,0.00012258,2]
[335981256,1724651439582,-500.0,0.00012258,2]
[335981257,1724651439592,-500.0,0.00012258,2]
[335981258,1724651439603,-500.0,0.00012258,2]
[335981259,1724651439614,-500.0,0.00012258,2]
[335981260,1724651439625,-500.0,0.00012258,2]
[335981261,1724651439635,-817.29,0.00012258,2]
[335981262,1724651439646,-500.0,0.00012258,2]
[335981263,1724651439657,-500.0,0.00012258,2]
[335981264,1724651439668,-793.39,0.00012259,2]
[335981265,1724651439679,-500.0,0.00012259,2]
[335981266,1724651439689,-214.63746201,0.00012259,2]
[335981267,1724651439701,-770.74,0.00012259,2]
[335981268,1724651439712,-372.28753431,0.00012259,2]
[335981269,1724651439723,-500.0,0.00012259,2]
[335981270,1724651439734,-500.0,0.00012259,2]
[335981271,1724651439748,-500.0,0.00012259,2]
[335981272,1724651439759,-500.0,0.00012259,2]
[335981273,1724651439770,-500.0,0.00012259,2]
[335981274,1724651439780,-500.0,0.00012259,2]
[335981275,1724651439790,-902.04,0.00012259,2]
[335981276,1724651439801,-500.0,0.00012259,2]
[335981277,1724651439812,-558.15,0.00012259,2]
[335981278,1724651439823,-646.49,0.00012259,2]
[335981279,1724651439834,-680.65,0.00012259,2]
[335981280,1724651439844,-704.99,0.00012259,2]
[335981281,1724651439855,-500.0,0.00012259,2]
[335981282,1724651439866,-707.17,0.00012259,2]
[335981283,1724651439877,-560.64,0.00012259,2]
[335981284,1724651439887,-807.35,0.00012259,2]
[335981285,1724651439898,-501.31729394,0.00012259,2]
[335981286,1724651439909,-500.0,0.00012259,2]
[335981287,1724651439920,-995.98,0.00012259,2]
[335981288,1724651439930,-500.0,0.00012259,2]
[335981289,1724651439942,-545.24,0.00012259,2]
[335981290,1724651439952,-937.82,0.00012259,2]
[335981291,1724651439963,-500.0,0.00012259,2]
[335981292,1724651439973,-500.0,0.00012259,2]
[335981293,1724651439984,-500.0,0.00012259,2]
[335981294,1724651439994,-616.77,0.00012259,2]
[335981295,1724651440004,-500.0,0.00012259,2]
[335981296,1724651440015,-500.0,0.00012259,2]
[335981298,1724651440025,-500.0,0.00012259,2]
[335981301,1724651440036,-846.83,0.00012259,2]
[335981303,1724651440046,-500.0,0.00012259,2]
[335981305,1724651440056,-500.0,0.00012259,2]
[335981307,1724651440066,-616.18,0.00012259,2]
[335981309,1724651440077,-929.07,0.00012259,2]
[335981311,1724651440087,-500.0,0.00012259,2]
[335981314,1724651440097,-520.17675558,0.00012259,2]
[335981316,1724651440107,-517.2,0.00012259,2]
[335981318,1724651440117,-500.0,0.00012259,2]
[335981320,1724651440128,-632.02,0.00012259,2]
[335981322,1724651440138,-846.41,0.00012259,2]
[335981323,1724651440149,-912.22,0.00012259,2]
[335981325,1724651440159,-500.0,0.00012259,2]
[335981327,1724651440169,-749.99,0.00012259,2]
[335981329,1724651440179,-635.25,0.00012259,2]
[335981331,1724651440189,-689.64,0.00012259,2]
[335981333,1724651440199,-3423.6,0.00012259,2]
[335981335,1724651440209,-500.0,0.00012259,2]
[335981337,1724651440220,-500.0,0.00012259,2]
[335981339,1724651440230,-500.0,0.00012259,2]
[335981341,1724651440240,-605.35,0.00012259,2]
[335981343,1724651440250,-500.0,0.00012259,2]
[335981345,1724651440260,-500.0,0.00012259,2]
[335981347,1724651440270,-500.0,0.00012259,2]
[335981349,1724651440280,-741.36,0.00012259,2]
[335981350,1724651440290,-500.0,0.00012259,2]
[335981351,1724651440300,-741.57,0.00012259,2]
[335981352,1724651440310,-644.99,0.00012259,2]
[335981353,1724651440320,-500.0,0.00012259,2]
[335981355,1724651440331,-973.67,0.00012259,2]
[335981357,1724651440341,-605.83,0.00012259,2]
[335981359,1724651440351,-783.85,0.00012259,2]
[335981361,1724651440361,-500.0,0.00012259,2]
[335981363,1724651440372,-535.67,0.00012259,2]
[335981367,1724651440382,-1117.16,0.00012259,2]
[335981370,1724651440392,-2008.6,0.00012259,2]
[335981372,1724651440402,-8356.54,0.00012259,2]
[335981375,1724651440413,-500.0,0.00012259,2]
[335981376,1724651440423,-4380.13,0.00012259,2]
[335981377,1724651440433,-500.0,0.00012259,2]
[335981378,1724651440443,-500.0,0.00012259,2]
[335981379,1724651440453,-640.28,0.00012259,2]
[335981380,1724651440463,-535.04,0.00012259,2]
[335981381,1724651440474,-500.0,0.00012259,2]
[335981382,1724651440484,-609.12,0.00012259,2]
[335981383,1724651440495,-551.85,0.00012259,2]
[335981384,1724651440506,-500.0,0.00012259,2]
[335981385,1724651440516,-500.0,0.00012259,2]
[335981386,1724651440527,-500.0,0.00012259,2]
[335981387,1724651440537,-819.09,0.00012259,2]
[335981388,1724651440547,-534.52,0.00012259,2]
[335981389,1724651440557,-500.0,0.00012259,2]
[335981390,1724651440568,-500.0,0.00012259,2]
[335981391,1724651440578,-592.9,0.00012259,2]
[335981392,1724651440588,-500.0,0.00012259,2]
[335981393,1724651440598,-898.45,0.00012259,2]
[335981394,1724651440608,-500.0,0.00012259,2]
[335981395,1724651440618,-500.0,0.00012259,2]
[335981396,1724651440629,-619.63,0.00012259,2]
[335981397,1724651440639,-941.9,0.00012259,2]
[335981398,1724651440649,-500.0,0.00012259,2]
[335981399,1724651440659,-983.46,0.00012259,2]
[335981400,1724651440670,-736.72,0.00012259,2]
[335981402,1724651441018,-500.0,0.00012259,2]
[335981403,1724651441032,-500.0,0.00012259,2]
[335981404,1724651441043,-698.09,0.00012259,2]
[335981405,1724651441053,-416.85413768,0.00012259,2]
[335981406,1724651441063,-575.47,0.00012259,2]
[335981407,1724651441073,-500.0,0.0001226,2]
[335981408,1724651441082,-500.0,0.0001226,2]
[335981409,1724651441091,-500.0,0.00012261,2]
[335981410,1724651441100,-500.0,0.00012261,2]
[335981411,1724651441109,-500.0,0.00012261,2]
[335981412,1724651441118,-605.79887429,0.00012261,2]
[335981413,1724651441127,-500.0,0.00012261,2]
[335981414,1724651441136,-500.0,0.00012261,2]
[335981415,1724651441144,-500.0,0.00012261,2]
[335981416,1724651441153,-500.0,0.00012261,2]
[335981417,1724651441162,-500.0,0.00012261,2]
[335981418,1724651441171,-500.0,0.00012261,2]
[335981419,1724651441180,-500.0,0.00012261,2]
[335981420,1724651441190,-500.0,0.00012261,2]
[335981421,1724651441199,-500.0,0.00012261,2]
[335981422,1724651441208,-927.74,0.00012261,2]
[335981423,1724651441219,-930.48,0.00012261,2]
[335981424,1724651441230,-500.0,0.00012261,2]
[335981425,1724651441242,-500.0,0.00012261,2]
[335981426,1724651441251,-500.0,0.00012261,2]
[335981427,1724651441263,-500.0,0.00012261,2]
[335981428,1724651441272,-500.0,0.00012261,2]
[335981429,1724651441282,-554.82,0.00012261,2]
[335981430,1724651441291,-854.73,0.00012261,2]
[335981431,1724651441301,-1088.6,0.00012261,2]
[335981432,1724651441310,-500.0,0.00012261,2]
[335981433,1724651441318,-541.75,0.00012261,2]
[335981434,1724651441328,-500.0,0.00012261,2]
[335981435,1724651441340,-500.0,0.00012261,2]
[335981436,1724651441352,-500.0,0.00012261,2]
[335981437,1724651441363,-500.0,0.00012261,2]
[335981438,1724651441373,-500.0,0.00012261,2]
[335981439,1724651441383,-500.0,0.00012261,2]
[335981440,1724651441393,-990.89,0.00012261,2]
[335981441,1724651441402,-500.0,0.00012261,2]
[335981442,1724651441411,-500.0,0.00012261,2]
[335981443,1724651441420,-500.0,0.00012261,2]
[335981444,1724651441429,-521.73176821,0.00012261,2]
[335981445,1724651441438,-500.0,0.00012261,2]
[335981446,1724651441452,-500.0,0.00012261,2]
[335981447,1724651441461,-555.61,0.00012261,2]
[335981448,1724651441470,-500.0,0.00012261,2]
[335981449,1724651441479,-505.56,0.00012261,2]
[335981450,1724651441489,-500.0,0.00012261,2]
[335981451,1724651441498,-504.61,0.00012261,2]
[335981452,1724651441507,-500.0,0.00012261,2]
[335981453,1724651441516,-500.0,0.00012261,2]
[335981454,1724651441525,-500.0,0.00012261,2]
[335981455,1724651441535,-523.95,0.00012261,2]
[335981456,1724651441544,-500.0,0.00012261,2]
[335981457,1724651441553,-500.0,0.00012261,2]
[335981458,1724651441562,-500.0,0.00012261,2]
[335981459,1724651441571,-500.0,0.00012261,2]
[335981460,1724651441580,-679.75,0.00012261,2]
[335981461,1724651441589,-500.0,0.00012261,2]
[335981462,1724651441598,-500.0,0.00012261,2]
[335981463,1724651441607,-527.14,0.00012261,2]
[335981464,1724651441616,-500.0,0.00012261,2]
[335981465,1724651441625,-500.0,0.00012261,2]
[335981466,1724651441634,-500.0,0.00012261,2]
[335981467,1724651441643,-500.0,0.00012261,2]
[335981468,1724651441652,-500.0,0.00012261,2]
[335981469,1724651441662,-500.0,0.00012261,2]
[335981470,1724651441671,-912.48,0.00012261,2]
[335981471,1724651441681,-500.0,0.00012261,2]
[335981472,1724651441690,-500.0,0.00012261,2]
[335981473,1724651441699,-500.0,0.00012261,2]
[335981474,1724651441708,-618.02126839,0.00012261,2]
[335981475,1724651441718,-616.87,0.00012261,2]
[335981476,1724651441727,-500.0,0.00012261,2]
[335981477,1724651441738,-500.0,0.00012261,2]
[335981478,1724651441749,-500.0,0.00012261,2]
[335981479,1724651441758,-500.0,0.00012261,2]
[335981480,1724651441767,-985.31,0.00012261,2]
[335981481,1724651441776,-500.0,0.00012261,2]
[335981482,1724651441786,-500.0,0.00012261,2]
[335981483,1724651441794,-926.84,0.00012261,2]
[335981484,1724651441804,-886.75,0.00012261,2]
[335981485,1724651441813,-500.0,0.00012261,2]
[335981486,1724651441822,-661.94,0.00012261,2]
[335981487,1724651441831,-500.0,0.00012261,2]
[335981488,1724651441840,-755.2,0.00012261,2]
[335981489,1724651441849,-500.0,0.00012261,2]
[335981490,1724651441858,-518.46,0.00012261,2]
[335981491,1724651441868,-500.0,0.00012261,2]
[335981492,1724651441878,-500.0,0.00012261,2]
[335981493,1724651441887,-500.0,0.00012261,2]
[335981494,1724651441896,-500.0,0.00012261,2]
[335981495,1724651441905,-500.0,0.00012261,2]
[335981496,1724651441914,-500.0,0.00012261,2]
[335981497,1724651441923,-792.85,0.00012261,2]
[335981498,1724651441932,-500.0,0.00012261,2]
[335981499,1724651441941,-500.0,0.00012261,2]
[335981500,1724651441952,-884.75,0.00012261,2]
[335981501,1724651441961,-500.0,0.00012261,2]
[335981502,1724651441970,-227.08342233,0.00012261,2]
[335981503,1724651441979,-559.2,0.00012261,2]
[335981504,1724651441988,-677.66,0.00012261,2]
[335981505,1724651441997,-500.0,0.00012261,2]
[335981506,1724651442006,-500.0,0.00012261,2]
[335981507,1724651442015,-500.0,0.00012261,2]
[335981508,1724651442024,-240.03462011,0.00012261,2]
[335981509,1724651442033,-500.0,0.00012261,2]
[335981510,1724651442042,-500.0,0.00012261,2]
[335981511,1724651442051,-433.30456367,0.00012261,2]
[335981512,1724651442060,-674.71,0.00012261,2]
[335981513,1724651442069,-500.0,0.00012261,2]
[335981514,1724651442078,-500.0,0.00012261,2]
[335981515,1724651442088,-500.0,0.00012261,2]
[335981516,1724651442097,-617.15,0.00012261,2]
[335981517,1724651442106,-523.57090291,0.00012261,2]
[335981518,1724651442114,-500.0,0.00012261,2]
[335981519,1724651442123,-500.0,0.00012261,2]
[335981520,1724651442132,-673.6,0.00012261,2]
[335981521,1724651442141,-500.0,0.00012261,2]
[335981522,1724651442150,-500.0,0.00012261,2]
[335981523,1724651442160,-500.0,0.00012261,2]
[335981524,1724651442169,-637.84,0.00012261,2]
[335981525,1724651442178,-500.0,0.00012261,2]
[335981526,1724651442187,-592.31,0.00012261,2]
[335981527,1724651442197,-954.61,0.00012261,2]
[335981528,1724651442206,-500.0,0.00012261,2]
[335981529,1724651442215,-500.0,0.00012261,2]
[335981530,1724651442224,-508.89,0.00012261,2]
[335981531,1724651442233,-500.0,0.00012261,2]
[335981532,1724651442242,-870.47,0.00012261,2]
[335981533,1724651442251,-500.0,0.00012261,2]
[335981534,1724651442260,-500.0,0.00012261,2]
[335981535,1724651442269,-500.0,0.00012261,2]
[335981536,1724651442279,-379.57396527,0.00012261,2]
[335981537,1724651442288,-628.64,0.00012261,2]
[335981538,1724651442297,-656.37,0.00012261,2]
[335981539,1724651442306,-500.0,0.00012261,2]
[335981540,1724651442315,-500.0,0.00012261,2]
[335981541,1724651442324,-982.63,0.00012261,2]
[335981542,1724651442333,-500.0,0.00012261,2]
[335981543,1724651442342,-500.0,0.00012261,2]
[335981544,1724651442350,-500.0,0.00012261,2]
[335981545,1724651442359,-500.0,0.00012261,2]
[335981546,1724651442368,-500.0,0.00012261,2]
[335981547,1724651442377,-500.0,0.00012261,2]
[335981548,1724651442387,-577.7,0.00012261,2]
[335981549,1724651442395,-500.0,0.00012261,2]
[335981550,1724651442404,-500.0,0.00012261,2]
[335981551,1724651442413,-500.0,0.00012261,2]
[335981552,1724651442423,-500.0,0.00012261,2]
[335981553,1724651442433,-500.0,0.00012261,2]
[335981554,1724651442443,-504.1,0.00012261,2]
[335981555,1724651442452,-500.0,0.00012261,2]
[335981556,1724651442462,-625.27,0.00012261,2]
[335981557,1724651442471,-500.0,0.00012261,2]
[335981558,1724651442480,-673.1,0.00012261,2]
[335981559,1724651442489,-563.96,0.00012261,2]
[335981560,1724651442498,-678.0,0.00012261,2]
[335981561,1724651442508,-500.0,0.00012261,2]
[335981562,1724651442517,-592.77987138,0.00012261,2]
[335981563,1724651442526,-500.0,0.00012261,2]
[335981564,1724651442535,-892.42,0.00012261,2]
[335981565,1724651442545,-749.98,0.00012261,2]
[335981566,1724651442555,-615.03,0.00012261,2]
[335981567,1724651442566,-580.33,0.00012261,2]
[335981568,1724651442576,-500.0,0.00012261,2]
[335981569,1724651442587,-500.0,0.00012261,2]
[335981570,1724651442599,-579.77,0.00012261,2]
[335981571,1724651442608,-1036.14,0.00012261,2]
[335981572,1724651442619,-1156.49,0.00012261,2]
[335981573,1724651442629,-500.0,0.00012261,2]
[335981574,1724651442639,-500.0,0.00012261,2]
[335981575,1724651442651,-500.0,0.00012261,2]
[335981576,1724651442661,-500.0,0.00012261,2]
[335981577,1724651442671,-490.97913741,0.00012261,2]
[335981578,1724651442681,-500.0,0.00012261,2]
[335981579,1724651442691,-500.0,0.00012261,2]
[335981580,1724651442700,-500.0,0.00012261,2]
[335981581,1724651442711,-503.0854609,0.00012261,2]
[335981582,1724651442721,-595.05,0.00012261,2]
[335981583,1724651442730,-500.0,0.00012261,2]
[335981584,1724651442742,-562.87,0.00012261,2]
[335981585,1724651442751,-500.0,0.00012261,2]
[335981586,1724651442761,-803.47,0.00012261,2]
[335981587,1724651442771,-593.23,0.00012261,2]
[335981588,1724651442780,-697.5,0.00012261,2]
[335981589,1724651442790,-659.05,0.00012261,2]
[335981590,1724651442800,-500.0,0.00012261,2]
[335981591,1724651442810,-500.0,0.00012261,2]
[335981592,1724651442820,-500.0,0.00012261,2]
[335981593,1724651442829,-500.0,0.00012261,2]
[335981594,1724651442839,-500.0,0.00012261,2]
[335981595,1724651442859,-500.0,0.00012261,2]
[335981596,1724651442870,-500.0,0.00012261,2]
[335981597,1724651442881,-500.0,0.00012272,2]
[335981598,1724651442892,-500.0,0.00012273,2]
[335981599,1724651442904,-500.0,0.00012273,2]
[335981600,1724651442916,-1119.0334727,0.00012356,2]
[335981602,1724651442928,-1613.91660303,0.00012356,2]
[335981604,1724651442938,-584.68134132,0.00012435,2]
[335981606,1724651442952,-2144.32657805,0.00012516,2]
[335981607,1724651442963,-743.4,0.00012522,2]
[335981608,1724651442975,-1867.14,0.00012522,2]
[335981609,1724651442985,-500.0,0.00012522,2]
[335981610,1724651442995,-569.25,0.00012522,2]
[335981611,1724651443006,-500.0,0.00012522,2]
[335981612,1724651443018,-595.62,0.00012522,2]
[335981613,1724651443027,-500.0,0.00012522,2]
[335981614,1724651443038,-43919.6934,0.00012522,2]
[335981615,1724651443050,-43919.6934,0.00012523,2]
[335981616,1724651443060,-500.0,0.00012531,2]
[335981617,1724651443070,-801.54,0.00012531,2]
[335981618,1724651443081,-9038.31,0.00012531,2]
[335981619,1724651443091,-500.0,0.00012531,2]
[335981620,1724651443103,-500.0,0.00012531,2]
[335981621,1724651443114,-2432.08,0.00012531,2]
[335981622,1724651443125,-500.0,0.00012531,2]
[335981623,1724651443135,-564.67,0.00012532,2]
[335981624,1724651443145,-500.0,0.00012532,2]
[335981625,1724651443156,-653.9,0.00012532,2]
[335981626,1724651443166,-500.0,0.00012532,2]
[335981627,1724651443175,-500.0,0.00012532,2]
[335981628,1724651443184,-500.0,0.00012532,2]
[335981629,1724651443195,-500.0,0.00012532,2]
[335981630,1724651443205,-500.0,0.00012532,2]
[335981631,1724651443214,-500.0,0.00012532,2]
[335981632,1724651443225,-9737.48,0.00012532,2]
[335981633,1724651443234,-500.0,0.00012532,2]
[335981634,1724651443243,-2600.67,0.00012532,2]
[335981635,1724651443253,-500.0,0.00012532,2]
[335981636,1724651443262,-622.95,0.00012532,2]
[335981637,1724651443272,-735.22,0.00012532,2]
[335981638,1724651443281,-4078.22,0.00012532,2]
[335981639,1724651443291,-500.0,0.00012532,2]